bitfinex/quotes_ETHUSD_20220113
["timestamp","ask_amount","ask_price","bid_price","bid_amount"]
[1642055831625,0.00113684,3344.6,3344.5,4.16021293]
[1642055831827,0.00113684,3344.6,3344.5,1.61000343]
[1642055832025,0.00113684,3344.6,3344.5,3.67007414]
[1642055832224,0.00113684,3344.6,3344.5,0.1195]
[1642055832428,0.00113684,3344.6,3344.5,1.1195]
[1642055832627,0.00113684,3344.6,3344.5,2.71098125]
[1642055832827,0.00113684,3344.6,3344.5,0.1195]
[1642055833029,0.00113684,3344.6,3344.5,1.1195]
[1642055833227,0.00113684,3344.6,3344.5,0.1195]
[1642055833428,0.00113684,3344.6,3344.4,0.8669]
[1642055833674,0.00113684,3344.6,3344.4,0.1195]
[1642055834069,0.00113684,3344.6,3344.4,1.1195]
[1642055834269,0.00113684,3344.6,3344.5,2.58527183]
[1642055834868,0.00113684,3344.6,3344.5,3.58527183]
[1642055835071,0.00113684,3344.6,3344.5,1.0]
[1642055835269,0.00113684,3344.6,3344.4,0.1195]
[1642055835674,0.00113684,3344.6,3344.4,0.86691]
[1642055835872,0.00113684,3344.6,3344.5,2.74875101]
[1642055836072,0.00113684,3344.6,3344.5,3.74875101]
[1642055836673,0.00113684,3344.6,3344.5,1.0]
[1642055836875,0.00113684,3344.6,3344.5,3.59232994]
[1642055839340,0.00113684,3344.6,3344.4,0.86691]
[1642055840141,0.00113684,3344.6,3344.5,2.5666268]
[1642055840340,0.00113684,3344.6,3344.5,2.6861268]
[1642055840540,0.00113684,3344.6,3344.5,3.6861268]
[1642055842884,0.00113684,3344.6,3344.5,0.1195]
[1642055846634,0.00113684,3344.6,3344.4,2.04741]
[1642055846833,0.00113684,3344.6,3344.4,1.74741]
[1642055847036,0.00113684,3344.6,3344.5,2.91785187]
[1642055847234,0.00113684,3344.6,3344.5,3.03735187]
[1642055847435,0.00113684,3344.6,3344.5,4.03735187]
[1642055847652,0.00113684,3344.6,3344.5,3.73735187]
[1642055848438,0.00113684,3344.6,3344.5,3.61785187]
[1642055848677,0.00113684,3344.6,3344.5,3.91785187]
[1642055848874,0.00113684,3344.6,3344.5,4.21785187]
[1642055849776,0.00113684,3344.6,3344.5,3.61785187]
[1642055850376,0.00113684,3344.6,3344.5,3.91785187]
[1642055850576,0.00113684,3344.6,3344.5,4.21785187]
[1642055851778,0.00113684,3344.6,3344.5,2.61785187]
[1642055852179,0.00113684,3344.6,3344.4,1.3453014]
[1642055852423,0.00113684,3344.6,3344.3,0.49733332]
[1642055853024,0.00113684,3344.6,3344.3,0.79733332]
[1642055853226,0.00113684,3344.6,3344.3,1.79733332]
[1642055853628,0.00113684,3344.6,3344.4,0.74737]
[1642055854633,0.00113684,3344.6,3344.4,3.62971164]
[1642055854832,0.00113684,3344.6,3344.4,3.74921164]
[1642055855033,0.00113684,3344.6,3344.5,1.0]
[1642055855233,0.00113684,3344.6,3344.5,1.3]
[1642055855633,0.00113684,3344.6,3344.5,0.3]
[1642055856032,0.00113684,3344.6,3344.4,0.7195]
[1642055856477,0.00113684,3344.6,3344.5,2.56021627]
[1642055856675,0.00113684,3344.6,3344.5,3.56021627]
[1642055857276,0.00113684,3344.6,3344.5,1.0]
[1642055857474,0.00113684,3344.6,3344.4,1.16691]
[1642055857679,0.00113684,3344.6,3344.4,1.04741]
[1642055858880,0.00113684,3344.6,3344.5,2.64911617]
[1642055859082,0.00113684,3344.6,3344.5,3.64911617]
[1642055859280,0.00113684,3344.6,3344.5,1.0]
[1642055859679,0.00113684,3344.6,3344.4,2.04741]
[1642055859916,0.00113684,3344.6,3344.4,2.34741]
[1642055860319,0.00113684,3344.6,3344.4,0.74741]
[1642055860619,0.00113684,3344.6,3344.3,0.49733332]
[1642055860818,0.00113684,3344.6,3344.4,0.74741]
[1642055861020,0.00113684,3344.6,3344.5,2.55395724]
[1642055861218,0.00113684,3344.6,3344.4,0.74741]
[1642055861418,2.5639186,3345.0,3344.8,1.32492712]
[1642055861825,0.00284211,3344.9,3344.8,1.32492712]
[1642055865074,0.00284211,3344.9,3344.2,9.94195]
[1642055865474,0.00227369,3344.8,3344.2,9.94195]
[1642055865875,0.00170527,3344.7,3344.2,9.94195]
[1642055866276,0.00113684,3344.6,3344.5,2.02347895]
[1642055866979,0.00113684,3344.6,3344.5,4.71830578]
[1642055867175,0.00113684,3344.6,3344.5,3.14297895]
[1642055867419,0.00113684,3344.6,3344.5,3.02347895]
[1642055867720,0.00113684,3344.6,3344.5,5.67976346]
[1642055867920,0.00113684,3344.6,3344.5,5.93468155]
[1642055868327,0.00113684,3344.6,3344.5,4.93468155]
[1642055868725,0.00113684,3344.6,3344.5,2.02347895]
[1642055869725,0.00113684,3344.6,3344.5,4.68698977]
[1642055870328,0.00113684,3344.6,3344.5,5.68698977]
[1642055870528,2.5639186,3345.0,3344.5,5.68698977]
[1642055870730,1.52156239,3345.5,3344.6,28.96278]
[1642055870933,1.52156239,3345.5,3345.0,0.74717]
[1642055871173,1.52156239,3345.5,3345.1,0.5455]
[1642055871371,0.1195,3345.6,3345.1,0.5455]
[1642055871572,0.1195,3345.6,3345.1,1.5455]
[1642055871770,0.00511581,3345.5,3345.1,0.5455]
[1642055871971,0.00511581,3345.5,3345.2,0.74717]
[1642055872171,0.00454739,3345.4,3345.3,0.86668]
[1642055872374,0.00454739,3345.4,3345.2,0.1195]
[1642055872572,0.00454739,3345.4,3345.1,0.1195]
[1642055872769,0.00397897,3345.3,3345.1,0.1195]
[1642055873171,0.00341054,3345.2,3345.1,0.1195]
[1642055873371,0.00341054,3345.2,3345.1,2.69930314]
[1642055873573,0.00341054,3345.2,3345.1,1.1195]
[1642055873970,0.00341054,3345.2,3345.1,0.1195]
[1642055877643,0.00341054,3345.2,3345.0,0.1195]
[1642055878045,0.00284212,3345.1,3345.0,2.97739138]
[1642055878244,0.00284212,3345.1,3345.0,0.1195]
[1642055878443,0.00284212,3345.1,3345.0,1.1195]
[1642055879981,0.00284212,3345.1,3345.0,0.1195]
[1642055880387,0.00284212,3345.1,3344.9,5.9217565]
[1642055880683,0.0022737,3345.0,3344.9,5.9217565]
[1642055882720,0.0022737,3345.0,3344.9,6.2217565]
[1642055883726,0.0022737,3345.0,3344.9,1.92033]
[1642055884524,0.0022737,3345.0,3344.9,4.49875501]
[1642055885126,0.0022737,3345.0,3344.9,5.49875501]
[1642055886029,0.0022737,3345.0,3344.9,5.61825501]
[1642055886271,0.0022737,3345.0,3344.9,3.03983]
[1642055888377,0.0022737,3345.0,3344.7,1.83163332]
[1642055888572,1.36382602,3345.1,3344.7,0.49733332]
[1642055888780,1.36382602,3345.1,3344.8,0.00113685]
[1642055889777,0.1195,3345.4,3344.8,0.00113685]
[1642055890022,1.42390468,3345.7,3344.8,0.00113685]
[1642055890225,0.00227369,3345.4,3344.6,1.0022737]
[1642055890623,0.00170527,3345.3,3344.7,0.00170527]
[1642055890825,1.25267035,3345.2,3344.7,0.00170527]
[1642055891024,1.25380719,3345.2,3344.6,0.0022737]
[1642055891230,1.25380719,3345.2,3344.4,2.89305]
[1642055891231,1.25380719,3345.2,3344.5,0.00284212]
[1642055892028,0.1195,3345.1,3344.5,0.00284212]
[1642055892325,0.1195,3345.1,3344.4,0.00341054]
[1642055892525,1.13435225,3344.5,3344.4,0.00341054]
[1642055892725,2.40287564,3344.5,3344.4,0.00341054]
[1642055892925,2.40287564,3344.5,3344.1,0.00511581]
[1642055893129,2.40287564,3344.5,3344.0,0.00568424]
[1642055894182,1.26852339,3344.5,3344.0,0.00568424]
[1642055894387,1.26852339,3344.5,3344.0,1.9733498]
[1642055894583,0.00794977,3344.4,3344.1,0.74748]
[1642055894783,0.00794977,3344.4,3344.1,0.75259581]
[1642055895084,0.00794977,3344.4,3344.2,0.00454739]
[1642055895284,0.00794977,3344.4,3344.2,0.12414739]
[1642055895483,0.00794977,3344.4,3344.3,1.49255318]
[1642055895684,0.00794977,3344.4,3344.3,1.49653215]
[1642055897084,0.00794977,3344.4,3344.3,2.49653215]
[1642055897919,0.00794977,3344.4,3344.3,2.61613215]
[1642055898321,0.00794977,3344.4,3344.3,4.56231853]
[1642055899529,0.01821181,3344.4,3344.3,4.56231853]
[1642055901576,0.01821181,3344.4,3344.3,2.61613215]
[1642055906228,0.01821181,3344.4,3344.3,0.12357897]
[1642055907234,0.01821181,3344.4,3344.3,0.00397897]
[1642055908251,0.01821181,3344.4,3344.3,0.12357897]
[1642055910474,0.01821181,3344.4,3344.3,0.00397897]
[1642055911276,0.01821181,3344.4,3344.3,1.53081277]
[1642055911679,0.01821181,3344.4,3344.3,2.53081277]
[1642055912277,0.01821181,3344.4,3344.3,1.00397897]
[1642055917287,0.00113684,3345.2,3344.4,6.9]
[1642055917489,0.00113684,3345.2,3344.8,0.74724]
[1642055917690,0.00113684,3345.2,3344.8,0.86674]
[1642055917987,0.00113684,3345.2,3344.8,0.7195]
[1642055918186,1.33881017,3344.9,3344.8,1.7195]
[1642055919292,0.00113684,3345.2,3344.8,1.4195]
[1642055919490,0.01924183,3345.1,3345.0,0.74727]
[1642055920429,1.1162236,3345.1,3345.0,0.74727]
[1642055921834,1.1162236,3345.1,3344.8,1.61404]
[1642055923433,1.1162236,3345.1,3344.8,1.49454]
[1642055924479,0.0192233,3345.0,3344.8,1.49454]
[1642055926581,0.239215,3345.7,3344.9,8.57234865]
[1642055926782,0.119715,3345.7,3345.1,1.49433]
[1642055926982,0.00341054,3345.6,3345.2,0.426]
[1642055927183,0.00341054,3345.6,3345.2,3.02617458]
[1642055927421,0.00284211,3345.5,3345.2,3.02617458]
[1642055927619,1.25331301,3345.4,3345.2,3.02617458]
[1642055927820,1.2555867,3345.4,3345.2,1.17317]
[1642055928018,0.00170527,3345.3,3345.2,0.74717]
[1642055928222,0.00170527,3345.3,3345.2,1.74717]
[1642055929123,0.00170527,3345.3,3345.2,0.74717]
[1642055929525,0.03065142,3345.3,3345.2,0.74717]
[1642055929924,2.5941858,3345.3,3345.2,0.74717]
[1642055930930,0.03065142,3345.3,3345.2,0.74717]
[1642055931176,1.57773151,3345.3,3345.2,0.74717]
[1642055931372,1.57773151,3345.3,3345.2,1.34717]
[1642055931671,0.03065142,3345.3,3345.2,4.9199431]
[1642055933978,0.03065142,3345.3,3345.2,2.34717]
[1642055934179,0.03065142,3345.3,3345.2,6.20812808]
[1642055934379,0.01877519,3345.3,3345.2,3.62942942]
[1642055934778,0.01877519,3345.3,3345.2,1.74717]
[1642055935629,0.01877519,3345.3,3345.2,0.74717]
[1642055936030,2.58250443,3345.3,3345.2,0.74717]
[1642055937030,0.01877519,3345.3,3345.2,0.74717]
[1642055938706,2.58251081,3345.3,3345.2,0.74717]
[1642055938893,2.58251081,3345.3,3345.1,2.49433]
[1642055939193,0.00113684,3345.2,3345.1,2.49433]
[1642055939395,0.00113684,3345.2,3345.1,1.49433]
[1642055940698,0.00113684,3345.2,3345.1,1.92033]
[1642055940895,2.56487246,3345.2,3345.1,4.63796486]
[1642055941097,2.56487246,3345.2,3345.1,1.92033]
[1642055941300,0.00113684,3345.2,3345.1,1.92033]
[1642055941696,0.00113684,3345.2,3345.1,2.92033]
[1642055942096,0.00113684,3345.2,3345.1,0.426]
[1642055942295,0.00113684,3345.2,3344.9,2.24463332]
[1642055942525,2.56484528,3345.2,3344.9,1.7473]
[1642055942727,2.56484528,3345.2,3344.9,0.7473]
[1642055943326,2.56484528,3345.2,3344.9,1.49453]
[1642055943529,2.56484528,3345.2,3345.0,1.49434]
[1642055943927,2.56484528,3345.2,3345.0,2.49434]
[1642055944130,2.56484528,3345.2,3345.0,1.49434]
[1642055944326,2.56484528,3345.2,3345.0,2.49434]
[1642055944327,0.01703285,3345.1,3345.0,2.49434]
[1642055944528,0.01703285,3345.1,3345.0,2.61384]
[1642055945327,0.01703285,3345.1,3345.0,1.49434]
[1642055945531,0.01703285,3345.1,3345.0,2.49434]
[1642055945931,0.01703285,3345.1,3345.0,1.49434]
[1642055949579,0.01703285,3345.1,3345.0,1.44434]
[1642055949580,0.0340657,3345.1,3345.0,1.44434]
[1642055950923,0.0340657,3345.1,3345.0,1.74434]
[1642055951125,0.0340657,3345.1,3345.0,2.04434]
[1642055951324,0.0340657,3345.1,3345.0,2.16384]
[1642055955075,0.0340657,3345.1,3345.0,0.1195]
[1642055955473,0.0340657,3345.1,3344.9,0.7473]
[1642055956678,0.0340657,3345.1,3344.9,1.0473]
[1642055957074,0.0340657,3345.1,3344.9,2.0473]
[1642055957274,0.0340657,3345.1,3344.9,0.7473]
[1642055957518,0.0340657,3345.1,3344.9,1.7473]
[1642055957719,0.0340657,3345.1,3344.9,0.7473]
[1642055958320,0.0340657,3345.1,3344.8,1.426]
[1642055958321,0.0340657,3345.1,3344.8,1.3]
[1642055958519,0.0340657,3345.1,3344.8,1.6]
[1642055958724,0.0340657,3345.1,3344.7,3.0213838]
[1642055959330,2.56390808,3345.0,3344.7,1.49455]
[1642055959525,2.59793671,3345.0,3344.7,1.49455]
[1642055960329,2.59793671,3345.0,3344.7,2.49455]
[1642055961371,0.03402863,3345.0,3344.7,2.49455]
[1642055961575,0.03402863,3345.0,3344.7,1.0]
[1642055961974,1.16026993,3344.7,3344.6,2.96937]
[1642055962173,1.16026993,3344.7,3344.6,1.74737]
[1642055962373,1.16026993,3344.7,3344.6,1.7496437]
[1642055962580,1.16026993,3344.7,3344.6,0.7496437]
[1642055964376,1.19418733,3344.7,3344.6,0.7496437]
[1642055965822,1.19259417,3344.7,3344.6,0.7496437]
[1642055966021,1.19259417,3344.7,3344.6,1.0496437]
[1642055966623,0.0339174,3344.7,3344.6,1.1691437]
[1642055967023,0.0339174,3344.7,3344.6,1.4691437]
[1642055967226,0.0339174,3344.7,3344.6,1.1691437]
[1642055967422,0.0339174,3344.7,3344.6,1.4691437]
[1642055968526,0.0339174,3344.7,3344.6,4.27595308]
[1642055968981,0.0339174,3344.7,3344.6,5.27595308]
[1642055969581,1.25033539,3345.1,3344.7,0.74726]
[1642055969783,1.25033539,3345.1,3345.0,0.74726]
[1642055969980,1.25033539,3345.1,3345.0,1.04726]
[1642055970784,1.25033539,3345.1,3344.8,1.00113685]
[1642055970983,1.25033539,3345.1,3344.8,0.00113685]
[1642055971185,1.25033539,3345.1,3344.8,1.00113685]
[1642055971583,1.25033539,3345.1,3344.8,0.00113685]
[1642055971982,2.56402127,3345.0,3344.8,0.00113685]
[1642055974338,0.03399156,3344.9,3344.8,0.00113685]
[1642055974540,1.40852615,3344.9,3344.8,0.00113685]
[1642055975340,0.03399156,3344.9,3344.8,0.00113685]
[1642055979480,1.28432695,3345.1,3344.8,0.00113685]
[1642055981030,2.56410347,3345.0,3344.8,0.00113685]
[1642055984402,0.03399156,3344.9,3344.8,0.00113685]
[1642055985306,2.59808769,3344.9,3344.8,0.00113685]
[1642055987727,2.59808769,3344.9,3344.7,0.00170527]
[1642055988740,0.03399156,3344.9,3344.7,0.00170527]
[1642055989537,1.28428987,3345.1,3344.7,0.00170527]
[1642055990542,2.56407601,3345.0,3344.7,0.00170527]
[1642055992094,2.56407601,3345.0,3344.5,0.64277527]
[1642055992499,0.00113684,3344.9,3344.5,0.64277527]
[1642055993500,0.00113684,3344.9,3344.6,0.74737]
[1642055994106,0.00113684,3344.9,3344.6,1.04737]
[1642055994305,0.00113684,3344.9,3344.6,1.34737]
[1642055994511,0.03395448,3344.8,3344.6,1.34737]
[1642055994708,0.03395448,3344.8,3344.6,2.46687]
[1642055995727,0.03395448,3344.8,3344.6,2.16687]
[1642055996525,0.03395448,3344.8,3344.6,1.16687]
[1642055996727,0.03395448,3344.8,3344.6,2.16687]
[1642055997326,0.03395448,3344.8,3344.6,1.86687]
[1642055997528,0.03395448,3344.8,3344.6,0.86687]
[1642055997727,0.03395448,3344.8,3344.6,1.74737]
[1642055998130,0.03395448,3344.8,3344.6,0.74737]
[1642055999376,1.12793537,3344.7,3344.5,1.76227527]
[1642055999580,2.81580796,3344.6,3344.3,1.5268338]
[1642055999976,0.1196,3344.5,3344.4,0.00170527]
[1642056000181,0.1195,3344.6,3344.4,0.00170527]
[1642056000376,1.16614936,3344.5,3344.4,0.00170527]
[1642056000980,1.16614936,3344.5,3344.2,0.00284212]
[1642056001878,2.61864968,3344.4,3344.2,0.00284212]
[1642056002079,1.16614936,3344.5,3344.2,0.00284212]
[1642056002080,3.73044895,3344.5,3344.2,0.00284212]
[1642056002534,3.73044895,3344.5,3344.1,0.00341054]
[1642056003133,2.58170974,3344.4,3344.1,0.00341054]
[1642056003336,2.56429959,3344.4,3344.1,0.00341054]
[1642056003738,2.56429959,3344.4,3344.0,0.00397897]
[1642056004540,2.59810575,3344.4,3344.0,0.00397897]
[1642056005440,1.15301226,3344.1,3344.0,0.00397897]
[1642056005840,0.03380616,3344.4,3344.0,1.00397897]
[1642056006044,0.03380616,3344.4,3344.0,0.00397897]
[1642056006277,0.03380616,3344.4,3344.1,0.00341054]
[1642056006478,0.03380616,3344.4,3344.0,0.00397897]
[1642056006683,0.03380616,3344.4,3344.0,0.75148897]
[1642056007079,0.03380616,3344.4,3344.1,0.00341054]
[1642056007280,0.03380616,3344.4,3344.2,0.1196]
[1642056007681,0.03380616,3344.4,3344.3,0.0022737]
[1642056007881,0.03380616,3344.4,3344.3,0.1218737]
[1642056009182,3.03380616,3344.4,3344.3,1.6166237]
[1642056009681,3.03380616,3344.4,3344.3,2.6166237]
[1642056010922,3.03380616,3344.4,3344.3,1.1218737]
[1642056011130,3.03380616,3344.4,3344.3,0.1218737]
[1642056012728,3.03380616,3344.4,3344.3,0.0022737]
[1642056017434,4.32892713,3344.4,3344.3,0.0022737]
[1642056021500,4.32892713,3344.4,3344.1,0.00341054]
[1642056021699,6.98205072,3344.4,3344.3,0.0022737]
[1642056021900,4.32892713,3344.4,3344.1,0.00341054]
[1642056024508,0.03376907,3344.3,3344.1,0.00341054]
[1642056027229,0.03376907,3344.3,3343.8,0.00511581]
[1642056029082,2.8160555,3344.3,3343.6,0.00625266]
[1642056029483,0.03373198,3344.2,3343.6,0.00625266]
[1642056030084,2.59835453,3344.2,3343.6,0.00625266]
[1642056030884,2.57188475,3344.1,3343.6,0.00625266]
[1642056031286,0.03373198,3344.2,3343.5,0.00682108]
[1642056033949,2.56469952,3344.1,3343.5,0.00682108]
[1642056034352,2.59839441,3344.1,3343.5,0.00682108]
[1642056034553,1.21036706,3343.8,3343.5,0.00682108]
[1642056034750,1.32331163,3343.7,3343.6,0.7476]
[1642056035154,1.32331163,3343.7,3343.6,0.75385266]
[1642056036893,1.32331163,3343.7,3343.6,0.00625266]
[1642056038094,1.32331163,3343.7,3343.5,0.00682108]
[1642056038095,1.44291163,3343.7,3343.5,0.00682108]
[1642056039398,1.35685814,3343.7,3343.5,0.00682108]
[1642056039597,4.35685814,3343.7,3343.5,0.00682108]
[1642056040453,4.47645814,3343.7,3343.5,0.00682108]
[1642056041448,4.35685814,3343.7,3343.5,0.00682108]
[1642056044485,0.03937576,3343.6,3343.5,0.00682108]
[1642056050636,4.20281042,3343.7,3343.5,0.00682108]
[1642056054013,4.32241042,3343.7,3343.5,0.00682108]
[1642056054416,0.02092763,3343.6,3343.5,0.00682108]
[1642056068095,0.02092763,3343.6,3343.4,6.16]
[1642056070334,0.02092763,3343.6,3343.5,0.1196]
[1642056071836,0.02092763,3343.6,3343.4,6.16]
[1642056073699,0.02092763,3343.6,3343.4,7.66401654]
[1642056074492,0.02089052,3343.5,3343.4,7.66401654]
[1642056074694,0.02089052,3343.5,3343.4,6.16]
[1642056074895,0.02089052,3343.5,3343.4,6.16738951]
[1642056079538,4.22370094,3343.7,3343.4,6.16738951]
[1642056079939,4.22370094,3343.7,3343.5,0.00682108]
[1642056084495,0.02092763,3343.6,3343.5,0.00682108]
[1642056085634,0.14052763,3343.6,3343.5,0.00682108]
[1642056086036,2.95633559,3343.6,3343.5,0.00682108]
[1642056086238,0.14052763,3343.6,3343.2,0.00852635]
[1642056086635,2.70521036,3343.6,3343.2,0.00852635]
[1642056087036,2.81580796,3343.5,3343.1,0.00909478]
[1642056087237,0.5456,3343.4,3343.1,0.00909478]
[1642056087439,0.5456,3343.4,3342.8,0.120702]
[1642056087440,3.26363629,3343.3,3342.9,0.01023163]
[1642056087638,0.1196,3343.2,3342.9,0.01023163]
[1642056088900,1.22064813,3343.1,3342.9,0.01023163]
[1642056089093,2.84982245,3343.0,3342.9,0.01023163]
[1642056090496,5.41450518,3343.0,3342.9,0.01023163]
[1642056094367,5.43521015,3343.0,3342.9,0.01023163]
[1642056095767,5.29841015,3343.0,3342.9,0.01023163]
[1642056096394,5.41801015,3343.0,3342.9,0.01023163]
[1642056096594,5.29373516,3343.0,3342.9,0.01023163]
[1642056096797,5.35600446,3343.0,3342.9,0.01023163]
[1642056097597,5.23640446,3343.0,3342.9,0.01023163]
[1642056100043,8.23640446,3343.0,3342.9,0.01023163]
[1642056102351,5.67172173,3343.0,3342.9,0.01023163]
[1642056103251,8.23688514,3343.0,3342.9,0.01023163]
[1642056105095,5.67172173,3343.0,3342.9,0.01023163]
[1642056105497,3.02070497,3343.0,3342.9,0.01023163]
[1642056105697,5.72852267,3343.0,3342.9,0.01023163]
[1642056105895,3.02070497,3343.0,3342.9,0.01023163]
[1642056106296,5.63988198,3343.0,3342.9,0.01023163]
[1642056106596,6.05948198,3343.0,3342.9,0.01023163]
[1642056106895,8.62468543,3343.0,3342.9,0.01023163]
[1642056108245,5.70550842,3343.0,3342.9,0.01023163]
[1642056108446,5.58590842,3343.0,3342.9,0.01023163]
[1642056109249,3.02070497,3343.0,3342.9,0.01023163]
[1642056116847,5.67902975,3343.0,3342.9,0.01023163]
[1642056117048,3.02070497,3343.0,3342.9,0.01023163]
[1642056117247,5.61783664,3343.0,3342.9,0.01023163]
[1642056117447,5.61783664,3343.0,3342.8,0.001102]
[1642056118049,3.02070497,3343.0,3342.8,0.001102]
[1642056118248,5.6418028,3343.0,3342.8,0.001102]
[1642056118451,5.61301568,3343.0,3342.8,0.001102]
[1642056118700,3.02070497,3343.0,3342.8,0.001102]
[1642056119501,0.02066785,3342.9,3342.8,0.001102]
[1642056119899,0.02066785,3342.9,3342.8,0.01190205]
[1642056121798,2.6233923,3342.9,3342.8,0.01190205]
[1642056121998,0.02066785,3342.9,3342.8,0.01190205]
[1642056123043,2.58581483,3342.9,3342.8,0.01190205]
[1642056123643,2.88581483,3342.9,3342.8,0.01190205]
[1642056124247,2.58581483,3342.9,3342.8,0.01190205]
[1642056125648,5.5073468,3342.9,3342.8,0.01190205]
[1642056125947,5.6269468,3342.9,3342.8,0.01190205]
[1642056126210,3.00541483,3342.9,3342.8,0.01190205]
[1642056126407,5.71595683,3342.9,3342.8,0.01190205]
[1642056127306,3.00541483,3342.9,3342.8,0.01190205]
[1642056127710,2.58581483,3342.9,3342.8,0.01190205]
[1642056129512,2.58581483,3342.9,3342.2,1.38150205]
[1642056129811,2.58581483,3342.9,3342.3,0.00284212]
[1642056130043,2.58581483,3342.9,3342.4,0.1196]
[1642056130444,2.56514698,3342.8,3342.5,0.00170527]
[1642056131045,2.56514698,3342.8,3342.4,0.00227369]
[1642056131847,1.47364732,3342.7,3342.4,0.00227369]
[1642056132751,2.56514698,3342.6,3342.4,0.00227369]
[1642056132952,2.86093905,3342.5,3342.4,0.00227369]
[1642056133352,2.86093905,3342.5,3342.1,3.3293]
[1642056133353,2.86093905,3342.5,3342.2,0.00341054]
[1642056133795,2.86093905,3342.5,3342.0,0.00454739]
[1642056134395,2.88145841,3342.5,3342.0,0.00454739]
[1642056134697,1.16834247,3342.4,3342.0,0.00454739]
[1642056134897,3.73348945,3342.4,3342.0,0.00454739]
[1642056136095,2.56514698,3342.3,3342.0,0.00454739]
[1642056136697,2.56514698,3342.3,3341.9,0.00511581]
[1642056139650,0.02145572,3342.2,3341.9,0.00511581]
[1642056144499,0.02141859,3342.1,3341.9,0.00511581]
[1642056149515,3.02138145,3342.3,3341.9,0.00511581]
[1642056151519,3.02138145,3342.3,3341.9,0.75309581]
[1642056151719,3.02138145,3342.3,3342.0,0.1196]
[1642056152020,3.02138145,3342.3,3342.1,0.00397896]
[1642056154448,0.02145572,3342.2,3342.1,0.00397896]
[1642056156050,0.02145572,3342.2,3341.9,0.61951896]
[1642056156301,0.02145572,3342.2,3342.0,0.1196]
[1642056157699,0.02145572,3342.2,3341.7,5.1174]
[1642056158097,0.02145572,3342.2,3341.8,0.00170527]
[1642056158299,3.9,3342.1,3341.7,1.07518138]
[1642056158500,2.809225,3342.0,3341.6,2.27108861]
[1642056158702,1.5535648,3341.9,3341.3,7.16102193]
[1642056158906,2.809225,3341.8,3341.3,7.16102193]
[1642056159101,0.3,3341.8,3341.4,0.0022737]
[1642056159503,1.8535648,3341.9,3341.4,0.0022737]
[1642056159701,1.11579919,3341.8,3341.4,0.0022737]
[1642056160755,2.56549762,3341.7,3341.4,0.0022737]
[1642056161559,5.18170894,3341.7,3341.2,0.00341054]
[1642056161757,2.56549762,3341.7,3341.2,0.00341054]
[1642056161961,5.18144866,3341.7,3341.2,0.00341054]
[1642056162159,5.18144866,3341.7,3340.9,0.00511581]
[1642056162366,2.61595104,3341.7,3341.0,0.1197]
[1642056162760,2.61595104,3341.7,3341.1,0.00397897]
[1642056162959,3.75707795,3341.8,3341.1,0.00397897]
[1642056163359,3.75707795,3341.8,3340.9,0.00511581]
[1642056163560,3.87677795,3341.8,3341.0,0.1197]
[1642056163801,2.29209475,3341.1,3341.0,0.1197]
[1642056164703,2.59209475,3341.1,3341.0,0.1197]
[1642056164904,0.7484803,3340.9,3340.7,2.27108861]
[1642056165301,3.61129475,3341.1,3340.7,2.27108861]
[1642056165302,0.1197,3340.8,3340.7,2.27108861]
[1642056165500,0.1197,3340.9,3340.7,2.27108861]
[1642056165702,0.1197,3341.0,3340.7,2.27734127]
[1642056166504,0.1197,3341.0,3339.8,0.49733332]
[1642056166711,0.426,3340.9,3339.8,0.49733332]
[1642056166905,0.1197,3340.8,3339.9,0.00454739]
[1642056167107,3.27850911,3340.8,3339.9,0.00454739]
[1642056167459,0.01299523,3340.4,3339.9,0.00454739]
[1642056167657,3.35835126,3340.3,3339.9,0.00454739]
[1642056167858,2.82851169,3340.2,3339.9,0.00454739]
[1642056168060,0.1197,3340.1,3339.9,0.00454739]
[1642056168256,0.1197,3340.2,3339.9,0.00454739]
[1642056168459,0.1197,3340.2,3339.2,0.00852635]
[1642056168659,0.1197,3340.2,3339.3,0.00795793]
[1642056168858,0.1197,3340.2,3339.4,0.1197]
[1642056169159,0.42621292,3340.2,3339.5,0.00682108]
[1642056169363,2.66799042,3340.1,3339.0,10.4909544]
[1642056169559,0.1197,3340.0,3339.0,10.4909544]
[1642056169758,0.1197,3340.0,3339.1,0.0022737]
[1642056169759,0.12254211,3340.0,3339.1,0.0022737]
[1642056169959,0.00227369,3339.9,3339.1,0.0022737]
[1642056170160,0.1197,3339.8,3339.1,0.0022737]
[1642056170360,0.12140527,3339.8,3339.1,0.0022737]
[1642056170559,1.15364846,3339.4,3339.1,0.0022737]
[1642056170763,0.1197,3339.3,3339.1,0.0022737]
[1642056170959,2.99558578,3339.3,3339.1,0.0022737]
[1642056171204,1.47837791,3339.2,3339.1,0.0022737]
[1642056171395,1.59807791,3339.2,3339.0,0.00284212]
[1642056171594,0.1197,3339.1,3339.0,0.00284212]
[1642056172399,1.47837791,3339.2,3339.0,0.00284212]
[1642056172599,1.47837791,3339.2,3338.9,0.00341054]
[1642056172800,1.47837791,3339.2,3338.8,0.00397897]
[1642056174203,1.47837791,3339.2,3338.5,0.75437424]
[1642056174402,1.2944677,3339.1,3338.6,2.62536475]
[1642056174608,1.2944677,3339.1,3338.6,2.64515783]
[1642056174805,1.2944677,3339.1,3338.7,0.00454739]
[1642056175747,1.2944677,3339.1,3338.5,1.49739]
[1642056175748,1.2944677,3339.1,3338.6,2.71919958]
[1642056175950,1.2944677,3339.1,3338.6,2.62794611]
[1642056176147,1.0939703,3338.8,3338.7,0.00454739]
[1642056176348,1.2944677,3339.1,3338.7,0.00454739]
[1642056176547,1.2944677,3339.1,3338.6,2.76997159]
[1642056176748,1.2944677,3339.1,3338.7,1.75320739]
[1642056176949,1.2944677,3339.1,3338.8,2.85054188]
[1642056177153,1.2944677,3339.1,3338.9,1.0]
[1642056177154,0.02318614,3339.1,3338.9,1.0]
[1642056177352,0.02318614,3339.1,3339.0,2.99558578]
[1642056177551,0.02318614,3339.1,3339.0,0.12254212]
[1642056177751,0.02318614,3339.1,3339.0,1.12254212]
[1642056178152,0.02318614,3339.1,3339.0,0.12254212]
[1642056178353,0.02318614,3339.1,3339.0,1.12254212]
[1642056178802,0.02318614,3339.1,3339.0,0.12254212]
[1642056179004,1.5749158,3339.1,3339.0,0.12254212]
[1642056179404,1.5749158,3339.1,3339.0,2.89774528]
[1642056180203,1.5749158,3339.1,3339.0,3.89774528]
[1642056180405,0.02318614,3339.1,3339.0,3.89774528]
[1642056180803,0.02318614,3339.1,3339.0,4.19774528]
[1642056181204,3.02318614,3339.1,3339.0,4.19774528]
[1642056181606,4.56517527,3339.1,3339.0,4.19774528]
[1642056181805,4.56517527,3339.1,3339.0,3.89774528]
[1642056183446,4.56517527,3339.1,3339.0,1.12254212]
[1642056183646,4.56517527,3339.1,3339.0,0.12254212]
[1642056185550,4.56517527,3339.1,3339.0,0.00284212]
[1642056186795,4.56517527,3339.1,3338.9,0.80008212]